[Event "American Cup Open Champions 2025"]
[Site "Saint Louis"]
[Date "2025.03.15"]
[Round "1.1"]
[White "Nakamura, Hikaru"]
[Black "Mishra, Abhimanyu"]
[Result "1/2-1/2"]
[Annotator "TA"]
[ECO "E05"]
[WhiteElo "2802"]
[BlackElo "2600"]
[PlyCount "188"]
[EventDate "2025.03.02"]
[EventType "k.o."]
[EventCountry "USA"]
[SourceTitle "playchess.com"]
[Source "ChessBase"]
[SourceQuality "1"]
[TimeControl "5400+30"]

{[%evp 18,188,8,0,6,6,0,-3,-3,-2,0,-13,-25,-25,-7,-18,-5,-5,-5,-2,-5,-16,-22,-29,6,-20,0,0,0,0,0,0,0,0,14,0,0,0,0,0,8,0,10,0,0,0,0,0,1,0,0,0,0,-6,0,-5,0,-6,24,0,27,0,0,0,0,0,0,0,0,0,0,0,0,0,0,0,0,0,0,0,0,0,0,0,0,-7,0,0,0,0,0,0,0,0,0,-13,29,33,55,40,46,64,60,51,81,77,102,109,102,64,64,62,53,45,84,86,112,108,108,97,124,131,156,133,87,87,179,179,170,162,162,0,174,154,154,146,259,259,263,264,251,259,234,208,250,26,26,26,33,40,383,48,399,34,26,20,20,20,22,31,69,62,87,87,87,87,94,0,88,103,110,0,117]} 1. d4 {[%emt 0:00:07]} Nf6 {[%emt 0:00:20]} 2. c4 {[%emt 0:00:16]} e6 {[%emt 0:00:21]} 3. Nf3 {[%emt 0:00:36]} d5 4. g3 {[%emt 0:00:42]} Be7 {[%emt 0:00:31]} 5. Bg2 {[%emt 0:01:26]} O-O {[%emt 0:00:19]} 6. O-O {[%emt 0:00:24]} dxc4 {[%emt 0:00:51]} 7. Qc2 {[%emt 0:00:30]} a6 {[%emt 0:00:58]} 8. a4 {[%emt 0:00:31]} Bd7 {[%emt 0:00:12]} 9. Qxc4 {[%emt 0:00:00]} Bc6 {[%emt 0:00:17]} 10. Bf4 {[%emt 0:02:50]} Bd6 {[%emt 0:03:15] E05: Open Catalan: 5 Nf3 Be7.} 11. Nc3 {[%emt 0:09:41]} Bxf4 {[%emt 0:01:21]} 12. gxf4 {[%emt 0:00:19]} a5 {[%emt 0:08:37]} 13. e3 {[%emt 0:00:14]} Na6 {[%emt 0:04:30][%cal Bb8a6,Ba6b4,Bb4c2][%mdl 32]} 14. Kh1 {[%emt 0:00:00]} Nb4 {[%emt 0:01:42]} 15. Qe2 {[%emt 0:07:34]} Qe7 $5 $146 {[%emt 0:16:49][%mdl 8] New and interesting.} ({Predecessor:} 15... Bxf3 16. Bxf3 c6 17. Rg1 Qe7 18. Rg5 Kh8 19. Rag1 g6 20. Qc2 Nxc2 {0-1 Aronian,L (2773)-Nakamura,H (2736) Saint Louis Blitz 2020 (7)}) 16. Nb5 {[%emt 0:10:35]} Bxf3 {[%emt 0:00:00]} (16... Ng4 {with more complications.} 17. Ng5 Bxg2+ 18. Kxg2 Nh6) 17. Bxf3 {[%emt 0:00:00]} c6 {[%emt 0:00:00]} 18. Na3 {[%emt 0:01:31]} Ne8 {[%emt 0:03:19]} 19. Nc2 {[%emt 0:06:42]} Nxc2 {[%emt 0:05:57]} 20. Qxc2 {[%emt 0:00:11]} f5 {[%emt 0:04:21]} 21. Qb3 {[%emt 0:03:02]} Nf6 {[%emt 0:02:17]} 22. Rac1 {[%emt 0:00:43]} Nd5 {[%emt 0:01:57]} 23. Rg1 {[%emt 0:04:04]} Rf7 {[%emt 0:01:50]} 24. Rc5 {[%emt 0:04:24]} Kh8 {[%emt 0:03:19]} 25. Qd1 {[%emt 0:00:22]} Qf6 {[%emt 0:03:08]} 26. Qf1 {[%emt 0:00:00]} Rc7 {[%emt 0:08:07]} 27. Qg2 {[%emt 0:00:00]} b6 28. Rc4 {[%emt 0:00:43]} Rac8 {[%emt 0:07:00]} 29. Rgc1 {[%emt 0:06:12]} Qe7 30. h3 {[%emt 0:03:46]} Nb4 {[%emt 0:02:08]} 31. Be2 (31. Bxc6 Nd3 32. Ra1 Nxf2+ (32... Nxb2 33. Rc3 $15) 33. Qxf2 Rxc6 34. Rxc6 Rxc6 $17) 31... Na2 {[%emt 0:00:00]} 32. Rd1 Nb4 {[%emt 0:00:16]} 33. b3 {[%emt 0:05:52]} Nd5 34. Rcc1 {[%emt 0:05:42]} Nb4 {[%emt 0:05:11]} 35. Bc4 {[%emt 0:00:46]} Na2 {[%emt 0:00:33]} 36. Ra1 {[%emt 0:00:30]} Nb4 {[%emt 0:00:30]} 37. Rg1 {[%emt 0:00:25]} Rd8 {[%emt 0:05:33]} 38. Kh2 {[%emt 0:05:58]} Qf6 39. Be2 {[%emt 0:05:25]} Rdc8 {[%emt 0:01:49]} 40. Rad1 {[%emt 0:01:23]} Nd5 {[%emt 0:01:31]} 41. Ba6 {[%emt 0:00:18]} Rd8 {[%emt 0:00:24]} 42. Rc1 {[%emt 0:00:46]} Nb4 {[%emt 0:00:00]} 43. Be2 {[%emt 0:01:40]} Rdc8 {[%emt 0:01:35]} 44. Rc4 {[%emt 0:00:44]} Qe7 {[%emt 0:01:05]} 45. Bf3 {[%emt 0:02:07]} Kg8 {[%emt 0:01:13]} 46. Rcc1 Qf6 {[%emt 0:03:22]} 47. Be2 {[%emt 0:01:00]} Kh8 {[%emt 0:00:55]} 48. Bc4 {[%emt 0:02:52]} Nd5 {[%emt 0:00:00]} 49. Qg3 {[%emt 0:01:13]} Rd8 50. h4 Qf7 {[%emt 0:00:00]} 51. Be2 {[%emt 0:00:17]} Rdc8 {[%emt 0:00:00]} 52. Ba6 Ra8 {[%emt 0:00:27]} 53. Be2 {[%emt 0:01:00]} Rac8 {[%emt 0:02:37]} 54. h5 {[%emt 0:04:29]} Nf6 {[%emt 0:00:30]} 55. Qh4 {[%emt 0:00:30]} Qe7 {[%emt 0:00:30][%cal Of6g4]} 56. Kg2 {[%emt 0:00:30]} Nd5 {[%emt 0:00:30]} 57. Qxe7 {[%emt 0:00:30]} Rxe7 {[%emt 0:00:30]} 58. Bf3 {[%emt 0:00:30]} Rec7 {[%emt 0:03:09]} 59. Bxd5 {[%emt 0:02:01]} cxd5 $14 {[%emt 0:00:41][%mdl 4096] Endgame KRR-KRR} 60. Rb1 {[%emt 0:01:45]} (60. Rxc7 Rxc7 61. Kf3 Rc3 $11) 60... Kg8 {[%emt 0:01:21]} 61. b4 {[%emt 0:00:28]} Rc4 {[%emt 0:01:32]} 62. bxa5 {[%emt 0:00:07]} bxa5 {[%emt 0:00:02][%cal Oc8c7]} 63. Kf3 {[%emt 0:00:22]} Rb4 {[%emt 0:01:10]} 64. Rxb4 {[%emt 0:01:13]} axb4 {[%emt 0:00:01] KR-KR} 65. h6 {[%emt 0:00:05]} g6 {[%emt 0:01:47]} 66. Rb1 {[%emt 0:00:24]} Rb8 {[%emt 0:00:04]} 67. Ke2 $1 {[%emt 0:00:08]} b3 {[%emt 0:01:10]} 68. Kd3 {[%emt 0:00:04]} Ra8 {[%emt 0:00:00]} 69. Rxb3 {[%emt 0:00:25]} Rxa4 {[%emt 0:00:12]} 70. Rb7 {[%emt 0:02:31] Wards off Ra7} Ra2 {[%emt 0:00:48]} ({Better is} 70... Ra1 71. Rg7+ Kh8) 71. Rg7+ $16 {[%emt 0:00:28]} Kh8 {[%emt 0:00:56]} (71... Kf8 $16) 72. Re7 $18 {[%emt 0:00:39][%cal Re7e8]} Kg8 {[%emt 0:00:08]} 73. Rxe6 {[%emt 0:00:47]} Rxf2 {[%emt 0:00:18]} 74. Re8+ $1 {[%emt 0:00:01]} Kf7 {[%emt 0:00:06]} 75. Rh8 {[%emt 0:00:03]} Kf6 {[%emt 0:01:14]} 76. Rxh7 {[%emt 0:00:30]} g5 {[%emt 0:00:34]} (76... Rh2 $16 77. Rh8 g5) 77. fxg5+ $1 {[%emt 0:01:49]} Kxg5 {[%emt 0:00:01]} 78. Rd7 {[%emt 0:00:05]} Kxh6 {[%emt 0:00:05]} 79. Rxd5 {[%emt 0:00:02]} Kg6 {[%emt 0:00:31]} 80. Re5 {[%emt 0:00:57]} Ra2 {[%emt 0:00:30] [#]} 81. e4 $2 {[%emt 0:00:30]} ({White must play} 81. Kc3 $1 $18) 81... fxe4+ $11 {[%emt 0:00:30]} 82. Rxe4 {[%emt 0:00:30]} Kf5 $1 {[%emt 0:01:38] ( -> ...Ra3+)} 83. Re8 {[%emt 0:02:47]} Ra4 $1 {[%emt 0:00:10]} 84. Kc3 {[%emt 0:00:27]} Kf6 {[%emt 0:00:19] [#]} 85. d5 $2 {[%emt 0:00:16]} (85. Re4 $1 $18 {Kb3 would now be deadly.} Kf7 86. Re2) 85... Kf7 $14 {[%emt 0:00:22]} 86. Re2 {[%emt 0:00:08]} Kf6 {[%emt 0:00:27]} 87. Re1 {[%emt 0:00:11]} Kf7 {[%emt 0:00:19]} 88. Re6 {[%emt 0:01:59]} Rh4 {[%emt 0:00:22]} 89. Re2 {[%emt 0:00:50]} Ra4 {[%emt 0:00:24]} 90. Re1 {[%emt 0:00:31]} Rh4 {[%emt 0:01:02]} 91. Re5 {[%emt 0:00:30]} Ra4 {[%emt 0:00:28]} 92. Re1 {[%emt 0:00:04]} Rh4 $1 {[%emt 0:00:10]} 93. Re6 {[%emt 0:00:02]} Ra4 {[%emt 0:00:07]} 94. Re1 {[%emt 0:00:02]} Rh4 $1 {[%emt 0:00:18] Weighted Error Value: White=0.04 (flawless) /Black=0.05 (flawless)   Loses game:     	---       	Black=1      Missed win:     	White=2     	---        Mistake:       	---       	Black=3      Inaccurate:     	White=3     	Black=6      OK:         	White=24    	Black=35     Best:        	White=11    	Black=5      Strong:       	White=3     	Black=4} 1/2-1/2

[Event "American Cup Open Champions 2025"]
[Site "Saint Louis"]
[Date "2025.03.15"]
[Round "1.2"]
[White "So, Wesley"]
[Black "Dominguez Perez, Leinier"]
[Result "1/2-1/2"]
[Annotator "TA"]
[ECO "D38"]
[WhiteElo "2748"]
[BlackElo "2741"]
[PlyCount "84"]
[EventDate "2025.03.02"]
[EventType "k.o."]
[EventCountry "USA"]
[SourceTitle "playchess.com"]
[Source "ChessBase"]
[SourceQuality "1"]
[TimeControl "5400+30"]

{[%evp 11,84,4,5,2,7,0,0,0,0,0,0,0,15,18,26,15,20,16,20,12,15,9,15,4,11,8,14,32,18,10,9,18,14,0,0,0,0,0,0,0,0,0,0,0,0,0,0,-8,-8,-8,0,0,0,0,0,0,0,0,0,0,0,0,0,0,0,0,0,0,0,0,0,0,0,0,0]} 1. c4 {[%emt 0:00:10]} e6 {[%emt 0:00:13]} 2. Nc3 {[%emt 0:00:23]} Nf6 {[%emt 0:00:07]} 3. Nf3 {[%emt 0:00:49]} d5 {[%emt 0:00:09]} 4. d4 {[%emt 0:00:21]} Bb4 {[%emt 0:00:08]} 5. Qa4+ {[%emt 0:03:28]} Nc6 {[%emt 0:00:07]} 6. e3 {[%emt 0:00:03]} O-O {[%emt 0:00:09]} 7. Qc2 {[%emt 0:00:47] D38: Queen's Gambit Declined: Ragozin Defence (4 Nf3 Bb4).} Re8 {[%emt 0:00:28]} 8. Bd2 {[%emt 0:00:22]} a6 {[%emt 0:00:11]} 9. a3 {[%emt 0:02:08]} Bd6 {[%emt 0:00:08]} 10. h3 {[%emt 0:01:00]} Bd7 {[%emt 0:01:49]} 11. Rd1 {[%emt 0:04:17]} h6 {[%emt 0:06:23]} 12. c5 {[%emt 0:08:51]} (12. Bc1 {looks sharper.} dxc4 13. Bxc4 e5 14. O-O) 12... Bf8 {[%emt 0:00:10]} 13. Ne5 {[%emt 0:00:05]} Nxe5 {[%emt 0:01:48]} 14. dxe5 {[%emt 0:00:05]} Ne4 {[%emt 0:00:17]} 15. Nxe4 {[%emt 0:00:04]} dxe4 {[%emt 0:00:06]} 16. Ba5 {[%emt 0:02:57][%cal Oc5c6]} Qc8 {[%emt 0:02:12]} 17. g4 {[%emt 0:07:04][%cal Oh3h4]} Bc6 {[%emt 0:08:06]} 18. Bg2 {[%emt 0:00:19]} Rd8 {[%emt 0:00:40]} 19. Rxd8 {[%emt 0:04:18]} Qxd8 {[%emt 0:00:04]} 20. Bxe4 {[%emt 0:00:15] The position is equal.} Bxe4 {[%emt 0:00:30]} 21. Qxe4 {[%emt 0:00:04]} Bxc5 {[%emt 0:00:12]} 22. Qxb7 {[%emt 0:00:43][%cal Ob7c6]} Rb8 {[%emt 0:01:03]} 23. Qxc7 {[%emt 0:01:51]} Qxc7 {[%emt 0:01:43]} 24. Bxc7 {[%emt 0:00:04]} Rxb2 $11 {[%emt 0:02:06][%mdl 4096] [#] Endgame KRB-KRB. White is a pawn up.} 25. O-O {[%emt 0:00:09]} Bxa3 $146 {[%emt 0:01:23]} (25... Rc2 26. Bd6 Bxd6 27. exd6 Rd2 28. Rb1 Rxd6 29. Rb8+ Kh7 30. Rb7 Kg6 31. Ra7 Kf6 {1-0 So,W (2767)-Vidit,S (2718) FIDE World Cup 2019 (3.1)}) 26. Ra1 {[%emt 0:02:12]} Be7 {[%emt 0:03:56]} 27. Rxa6 {[%emt 0:07:21]} Bh4 {[%emt 0:00:33]} 28. f4 {[%emt 0:00:45]} Bf2+ {[%emt 0:04:54]} 29. Kh1 {[%emt 0:00:21]} Bxe3 {[%emt 0:01:38]} 30. f5 {[%emt 0:00:12]} Bf4 {[%emt 0:10:22]} 31. Ra8+ {[%emt 0:09:55]} Kh7 {[%emt 0:00:08]} 32. Rf8 {[%emt 0:00:04] [#]} Rb7 {[%emt 0:05:13]} 33. Rxf7 {[%emt 0:01:06] f6 would now be deadly.} Bxe5 {[%emt 0:00:11]} 34. fxe6 {[%emt 0:00:03]} (34. Bxe5 $2 Rxf7 35. fxe6 Re7 $19) 34... Bxc7 {[%emt 0:00:08] KRB-KR} (34... Rxc7 $2 {perishes.} 35. Rxc7 Kg6 36. Rf7 $18) 35. e7 {[%emt 0:00:12]} Rb1+ {[%emt 0:00:06]} 36. Kg2 {[%emt 0:00:04]} Re1 $1 {[%emt 0:00:07] and ...Bd6 would now be decisive} (36... Rb2+ 37. Rf2 Rb8 38. Rf8 Rb2+ 39. Kf3 Rb3+ 40. Ke4 Rb4+ 41. Kd5 Rb5+ 42. Kd4 $16) 37. e8=Q {[%emt 0:00:26]} Rxe8 {[%emt 0:00:13]} 38. Rxc7 {[%emt 0:00:02]} Re2+ {[%emt 0:00:07]} 39. Kg3 {[%emt 0:00:03]} Re3+ {[%emt 0:00:05]} 40. Kg2 {[%emt 0:00:03]} Re2+ {[%emt 0:00:06]} 41. Kg3 {[%emt 0:00:03]} Re3+ {[%emt 0:00:05]} 42. Kg2 {[%emt 0:00:03]} Re2+ {[%emt 0:00:08] An even fight not without its subleties.   Weighted Error Value: White=0.01 (flawless) /Black=0.01 (flawless)   OK:         	White=17    	Black=18     Best:        	White=4     	Black=4      Strong:       	---       	Black=1} 1/2-1/2

[Event "American Cup Open Champions 2025"]
[Site "Saint Louis"]
[Date "2025.03.16"]
[Round "1.2"]
[White "Dominguez Perez, Leinier"]
[Black "So, Wesley"]
[Result "1/2-1/2"]
[Annotator "RC"]
[ECO "C54"]
[WhiteElo "2741"]
[BlackElo "2748"]
[PlyCount "73"]
[EventDate "2025.03.02"]
[EventType "k.o."]
[EventCountry "USA"]
[SourceTitle "playchess.com"]
[Source "ChessBase"]
[SourceQuality "1"]
[TimeControl "5400+30"]

1. e4 {[%emt 0:00:03]} e5 {[%emt 0:00:05]} 2. Nf3 {[%emt 0:00:07]} Nc6 {[%emt 0:00:04]} 3. Bc4 {[%emt 0:00:18]} Bc5 {[%emt 0:00:18]} 4. c3 {[%emt 0:00:08]} Nf6 {[%emt 0:00:03]} 5. d3 {[%emt 0:00:08]} d6 {[%emt 0:00:05]} 6. O-O {[%emt 0:00:19]} a6 {[%emt 0:00:06]} 7. a4 {[%emt 0:00:23]} Ba7 {[%emt 0:00:32]} 8. Re1 {[%emt 0:00:07]} O-O {[%emt 0:00:06]} 9. h3 {[%emt 0:00:15]} b5 {[%emt 0:00:12]} 10. Bb3 {[%emt 0:03:00]} b4 {[%emt 0:00:16]} 11. a5 {[%emt 0:05:10]} Rb8 {[%emt 0:00:16]} 12. Bc4 {[%emt 0:15:14]} bxc3 {[%emt 0:14:56]} 13. bxc3 {[%emt 0:00:30]} Nxa5 {[%emt 0:06:22]} 14. Rxa5 {[%emt 0:00:13]} Rxb1 {[%emt 0:00:05]} 15. Qc2 {[%emt 0:07:10]} Rb8 {[%emt 0:01:32]} 16. Bxa6 {[%emt 0:00:12]} Bb6 {[%emt 0:00:25]} 17. Ra3 {[%emt 0:00:08]} Bxa6 {[%emt 0:00:45]} 18. Rxa6 {[%emt 0:00:03]} h6 {[%emt 0:00:40]} 19. Nd2 {[%emt 0:08:12]} Ra8 {[%emt 0:05:53]} 20. Rxa8 {[%emt 0:01:05]} Qxa8 {[%emt 0:00:04]} 21. Nc4 {[%emt 0:00:10]} Bc5 {[%emt 0:00:30]} 22. Be3 {[%emt 0:02:10]} Bxe3 {[%emt 0:00:07]} 23. Nxe3 {[%emt 0:00:05]} Rb8 {[%emt 0:01:01]} 24. Rb1 {[%emt 0:01:49]} Rxb1+ {[%emt 0:00:17]} 25. Qxb1 {[%emt 0:00:07]} g6 {[%emt 0:00:19]} 26. g3 {[%emt 0:02:06]} Kg7 {[%emt 0:00:49]} 27. h4 {[%emt 0:01:31]} Qa3 {[%emt 0:00:59]} 28. Qc2 {[%emt 0:01:15]} h5 {[%emt 0:00:23]} 29. Qd2 {[%emt 0:02:25]} Qc5 {[%emt 0:03:46]} 30. Nf5+ {[%emt 0:03:57]} gxf5 {[%emt 0:00:10]} 31. Qg5+ {[%emt 0:00:03]} Kf8 {[%emt 0:00:06]} 32. Qxf6 {[%emt 0:00:03]} fxe4 {[%emt 0:00:05]} 33. Qd8+ {[%emt 0:00:59]} Kg7 {[%emt 0:00:04]} 34. Qg5+ {[%emt 0:00:07]} Kf8 {[%emt 0:00:04]} 35. Qd8+ {[%emt 0:00:26]} Kg7 {[%emt 0:00:04]} 36. Qg5+ {[%emt 0:00:15]} Kf8 {[%emt 0:00:03]} 37. Qd8+ {[%emt 0:00:25]} 1/2-1/2

[Event "American Cup Open Champions 2025"]
[Site "Saint Louis"]
[Date "2025.03.16"]
[Round "1.2"]
[White "Sevian, Samuel"]
[Black "Aronian, Levon"]
[Result "1/2-1/2"]
[Annotator "TA"]
[ECO "C55"]
[WhiteElo "2692"]
[BlackElo "2748"]
[PlyCount "86"]
[EventDate "2025.03.02"]
[EventType "k.o."]
[EventCountry "USA"]
[SourceTitle "playchess.com"]
[Source "ChessBase"]
[SourceQuality "1"]
[TimeControl "5400+30"]

{[%evp 16,86,34,28,34,4,8,6,6,17,22,0,0,-10,-4,0,27,11,4,8,4,4,8,0,3,0,0,0,0,0,0,0,-1,-7,0,-24,0,0,0,-37,0,-6,0,0,0,0,0,0,0,0,0,0,0,0,0,0,0,0,0,0,0,0,0,0,0,0,0,0,0,0,0,0,0]} 1. e4 {[%emt 0:00:07]} e5 {[%emt 0:00:04]} 2. Nf3 {[%emt 0:00:10]} Nc6 {[%emt 0:00:07]} 3. Bc4 {[%emt 0:00:20]} Nf6 {[%emt 0:00:07]} 4. d3 {[%emt 0:00:14]} Be7 {[%emt 0:00:07]} 5. O-O {[%emt 0:00:19]} O-O {[%emt 0:00:06]} 6. Re1 {[%emt 0:00:37]} d6 {[%emt 0:00:14]} 7. a4 {[%emt 0:00:14]} Be6 {[%emt 0:02:45]} 8. Nbd2 {[%emt 0:00:38][%cal Bb1d2,Bd2c4,Bc4e3][%mdl 32]} Qd7 {[%emt 0:02:51]} 9. c3 {[%emt 0:03:31]} h6 {[%emt 0:03:59] C55: Two Knights: 4 d3, 4 d4 exd4 5 e5 and Max Lange Attack.} 10. a5 {[%emt 0:04:17]} Bxc4 {[%emt 0:04:15]} 11. Nxc4 {[%emt 0:10:14]} b5 {[%emt 0:01:00]} 12. Ne3 {[%emt 0:04:07]} Rfe8 {[%emt 0:04:24]} 13. a6 $146 {[%emt 0:13:20]} (13. Bd2 d5 14. Qc2 Rad8 15. b4 dxe4 16. dxe4 Qd3 17. Qxd3 Rxd3 18. Nf1 Bf8 19. Re2 {½-½ De Smet,K (2176)-Klewe,W (2175) BEL-GER email 2017}) 13... Bf8 {[%emt 0:01:50]} 14. Nh4 {[%emt 0:13:56]} g6 {[%emt 0:03:55] Dodges Nhf5} 15. h3 $1 {[%emt 0:02:40]} Red8 {[%emt 0:08:49]} 16. Ng4 {[%emt 0:09:59]} Nxg4 {[%emt 0:00:29]} 17. Qxg4 {[%emt 0:00:20]} Qxg4 {[%emt 0:08:09]} 18. hxg4 {[%emt 0:00:04]} d5 {[%emt 0:00:10]} 19. Nf3 {[%emt 0:02:21]} g5 {[%emt 0:07:50]} 20. Be3 {[%emt 0:07:21]} d4 {[%emt 0:02:26]} 21. cxd4 {[%emt 0:00:18]} exd4 {[%emt 0:00:08]} 22. Bd2 {[%emt 0:00:25]} Nb4 {[%emt 0:00:21]} 23. Bxb4 {[%emt 0:14:33]} Bxb4 {[%emt 0:00:11]} 24. Rec1 {[%emt 0:00:02]} c5 {[%emt 0:00:09]} 25. Ne1 {[%emt 0:00:05]} c4 {[%emt 0:02:47]} 26. Nc2 {[%emt 0:01:29]} Bf8 {[%emt 0:11:20]} 27. Na3 {[%emt 0:01:57]} Bxa3 {[%emt 0:01:27]} 28. Rxa3 $15 {[%emt 0:00:03][%mdl 4096] Endgame KRR-KRR. The position is equal.} Rac8 {[%emt 0:00:38]} 29. Kf1 {[%emt 0:02:51]} b4 {[%emt 0:12:20]} 30. Ra4 {[%emt 0:00:36]} cxd3 {[%emt 0:00:42]} 31. Rd1 {[%emt 0:00:59]} Rc2 {[%emt 0:10:54]} 32. Rxb4 {[%emt 0:01:07]} Rd6 {[%emt 0:00:25]} ({Of course not} 32... d2 $6 33. Ke2 $16) 33. Rxd3 {[%emt 0:03:10]} Rf6 {[%emt 0:00:32]} 34. f3 {[%emt 0:00:51]} (34. Rbxd4 Rfxf2+ 35. Ke1 Rxg2 $17) 34... Rxa6 {[%emt 0:00:04] [#] ( -> ...Ra1+)} 35. Rbxd4 {[%emt 0:00:09]} Rxb2 {[%emt 0:00:08] and ...Raa2 would now be decisive} 36. Rd2 {[%emt 0:00:18]} Rxd2 {[%emt 0:00:17]} 37. Rxd2 $11 {[%emt 0:00:02] KR-KR} Kg7 {[%emt 0:00:13]} 38. Kf2 {[%emt 0:00:43]} Ra3 {[%emt 0:00:15]} 39. Rd7 {[%emt 0:00:16]} Ra2+ {[%emt 0:00:04]} 40. Ke3 {[%emt 0:00:03]} Ra3+ {[%emt 0:00:11]} 41. Kd4 {[%emt 0:00:17]} Ra2 {[%emt 0:00:05]} 42. Ke3 {[%emt 0:00:03] Wards off Rd2} Ra3+ {[%emt 0:00:04]} 43. Kd4 {[%emt 0:00:02]} Ra2 {[%emt 0:00:04] Not much happened in this game.   Weighted Error Value: White=0.05 (flawless) /Black=0.04 (flawless)   Inaccurate:     	White=2     	Black=2      OK:         	White=14    	Black=18     Best:        	---       	Black=3      Strong:       	White=1     	---} 1/2-1/2

[Event "American Cup Open Champions 2025"]
[Site "Saint Louis"]
[Date "2025.03.16"]
[Round "1.2"]
[White "Robson, Ray"]
[Black "Caruana, Fabiano"]
[Result "1/2-1/2"]
[Annotator "TA"]
[ECO "B35"]
[WhiteElo "2689"]
[BlackElo "2783"]
[PlyCount "48"]
[EventDate "2025.03.02"]
[EventType "k.o."]
[EventCountry "USA"]
[SourceTitle "playchess.com"]
[Source "ChessBase"]
[SourceQuality "1"]
[TimeControl "5400+30"]

{[%evp 22,48,35,19,17,24,51,49,50,31,31,31,37,34,49,33,37,35,39,37,36,26,44,0,43,0,33,0,37]} 1. e4 {[%emt 0:00:04]} c5 {[%emt 0:00:25]} 2. Nc3 {[%emt 0:00:21]} Nc6 {[%emt 0:00:53]} 3. Nf3 {[%emt 0:00:34]} g6 {[%emt 0:00:42]} 4. d4 {[%emt 0:00:51]} cxd4 {[%emt 0:00:08]} 5. Nxd4 {[%emt 0:00:07]} Bg7 {[%emt 0:00:05]} 6. Be3 {[%emt 0:00:27]} Nf6 {[%emt 0:00:44]} 7. Bc4 {[%emt 0:01:15]} O-O {[%emt 0:00:21]} 8. Bb3 {[%emt 0:00:45]} a5 {[%emt 0:01:44]} 9. O-O {[%emt 0:02:25]} Ng4 {[%emt 0:00:27]} 10. Qxg4 {[%emt 0:02:45]} Nxd4 {[%emt 0:00:04]} 11. Qd1 {[%emt 0:14:28]} Nxb3 {[%emt 0:01:29]} 12. axb3 {[%emt 0:01:42]} d6 {[%emt 0:15:19] B35: Sicilian: Accelerated Dragon with 5 Nc3: main line.} 13. Bd4 {[%emt 0:01:01]} Ra6 {[%emt 0:02:57]} 14. Bxg7 {[%emt 0:05:13]} Kxg7 {[%emt 0:00:04] White is slightly better.} 15. Qd4+ {[%emt 0:02:16]} f6 $146 {[%emt 0:01:12]} (15... Kg8 16. Rfd1 Be6 17. Qe3 Qc7 18. Rd2 Re8 19. h4 Qc5 20. Qxc5 dxc5 21. Nd5 Bxd5 22. Rxd5 {1-0 Prelati,M (1843)-Zanin,L (1653) Arco op 43rd 2021 (8)}) 16. Nd5 {[%emt 0:07:34]} Be6 {[%emt 0:18:20]} 17. c4 {[%emt 0:07:05]} Qd7 {[%emt 0:05:01]} 18. Ra2 {[%emt 0:01:58]} Rb8 {[%emt 0:03:25]} 19. Rfa1 {[%emt 0:02:02]} Qd8 {[%emt 0:01:00]} 20. h3 {[%emt 0:04:57]} Rba8 {[%emt 0:07:21]} 21. Ra3 {[%emt 0:04:58]} Bf7 {[%emt 0:00:29]} 22. R3a2 {[%emt 0:03:34]} Be6 {[%emt 0:02:08]} 23. Ra3 {[%emt 0:00:10]} Bf7 {[%emt 0:00:03]} 24. R3a2 {[%emt 0:00:22]} Be6 {[%emt 0:00:29] Weighted Error Value: White=0.15 (very precise) /Black=0.06 (flawless)   Inaccurate:     	---       	Black=1      OK:         	White=4     	Black=5} 1/2-1/2